fUST/lending_fUST_20250606
["ID","MTS","AMOUNT","RATE_DAILY","PERIOD"]
[364624541,1749167435203,-440.0,0.00020142,2]
[364624542,1749167435212,-430.0,0.00020142,2]
[364624543,1749167435221,-487.92765543,0.00020142,2]
[364624544,1749167435230,-430.0,0.00020142,2]
[364624545,1749167435239,-217.9476667,0.00020142,2]
[364624546,1749167435248,-440.0,0.00020142,2]
[364624547,1749167435258,-440.0,0.00020142,2]
[364624548,1749167435269,-440.0,0.00020142,2]
[364624549,1749167435279,-314.15,0.00020142,2]
[364624550,1749167435290,-293.06503057,0.00020142,2]
[364624551,1749167435301,-440.0,0.00020142,2]
[364624552,1749167435311,-440.0,0.00020142,2]
[364624553,1749167435322,-440.0,0.00020142,2]
[364624554,1749167435331,-440.0,0.00020142,2]
[364624555,1749167435341,-440.0,0.00020142,2]
[364624556,1749167435352,-440.0,0.00020142,2]
[364624557,1749167435362,-440.0,0.00020142,2]
[364624558,1749167435373,-440.0,0.00020142,2]
[364624559,1749167435383,-440.0,0.00020142,2]
[364624560,1749167435394,-440.0,0.00020142,2]
[364624561,1749167435403,-440.0,0.00020142,2]
[364624562,1749167435413,-420.0,0.00020142,2]
[364624563,1749167435424,-440.0,0.00020142,2]
[364624564,1749167435433,-440.0,0.00020142,2]
[364624565,1749167435442,-440.0,0.00020142,2]
[364624566,1749167435451,-440.0,0.00020142,2]
[364624567,1749167435461,-440.0,0.00020142,2]
[364624568,1749167435471,-440.0,0.00020142,2]
[364624569,1749167435482,-440.0,0.00020142,2]
[364624570,1749167435494,-430.0,0.00020142,2]
[364624571,1749167435503,-199.80661,0.00020187,2]
[364624572,1749167435512,-500.0,0.00020357,2]
[364624573,1749167435523,-500.0,0.00020357,2]
[364624574,1749167435532,-500.0,0.00020357,2]
[364624575,1749167435541,-464.88976482,0.00020357,2]
[364624576,1749167435551,-500.0,0.00020357,2]
[364624577,1749167435564,-500.0,0.00020357,2]
[364624578,1749167435574,-500.0,0.00020357,2]
[364624579,1749167435583,-191.18332964,0.00020402,2]
[364624580,1749167435592,-440.0,0.00020414,2]
[364624581,1749167435601,-160.0,0.00020415,2]
[364624582,1749167435611,-440.0,0.00020415,2]
[364624583,1749167435620,-575.15,0.00020415,2]
[364624584,1749167435629,-832.01,0.00020415,2]
[364624585,1749167435639,-478.71,0.00020415,2]
[364624586,1749167435648,-440.0,0.00020415,2]
[364624587,1749167435658,-440.0,0.00020415,2]
[364624588,1749167435668,-440.0,0.00020415,2]
[364624589,1749167435677,-440.0,0.00020415,2]
[364624590,1749167435687,-394.63364122,0.00020415,2]
[364624591,1749167435697,-440.0,0.00020415,2]
[364624592,1749167435707,-280.19594758,0.00020415,2]
[364624593,1749167435717,-440.0,0.00020415,2]
[364624594,1749167435726,-360.0,0.00020415,2]
[364624595,1749167435736,-440.0,0.00020415,2]
[364624596,1749167435745,-1716.07,0.00020415,2]
[364624597,1749167435754,-440.0,0.00020415,2]
[364624598,1749167435763,-440.0,0.00020415,2]
[364624599,1749167435772,-454.69,0.00020415,2]
[364624600,1749167435781,-440.0,0.00020415,2]
[364624601,1749167435790,-440.0,0.00020415,2]
[364624602,1749167435799,-440.0,0.00020415,2]
[364624603,1749167435809,-440.0,0.00020415,2]
[364624604,1749167435818,-440.0,0.00020415,2]
[364624605,1749167435828,-440.0,0.00020415,2]
[364624606,1749167435837,-440.0,0.00020415,2]
[364624607,1749167435846,-440.0,0.00020415,2]
[364624608,1749167435855,-440.0,0.00020416,2]
[364624609,1749167435865,-440.0,0.00020416,2]
[364624610,1749167435874,-470.0,0.00020416,2]
[364624611,1749167435883,-470.0,0.00020416,2]
[364624612,1749167435893,-440.0,0.00020416,2]
[364624613,1749167435902,-440.0,0.00020416,2]
[364624614,1749167435913,-440.0,0.00020416,2]
[364624615,1749167435923,-361.33,0.00020416,2]
[364624616,1749167435932,-440.0,0.00020416,2]
[364624617,1749167435942,-440.0,0.00020416,2]
[364624618,1749167435951,-300.41535562,0.00020416,2]
[364624619,1749167435961,-440.0,0.00020416,2]
[364624620,1749167435970,-440.0,0.00020416,2]
[364624621,1749167435979,-440.0,0.00020416,2]
[364624622,1749167435988,-440.0,0.00020416,2]
[364624623,1749167435998,-440.0,0.00020416,2]
[364624624,1749167436007,-440.0,0.00020416,2]
[364624625,1749167436016,-332.08705978,0.00020416,2]
[364624626,1749167436025,-440.0,0.00020416,2]
[364624627,1749167436035,-440.0,0.00020416,2]
[364624628,1749167436044,-440.0,0.00020416,2]
[364624629,1749167436053,-440.0,0.00020416,2]
[364624630,1749167436063,-440.0,0.00020416,2]
[364624631,1749167436072,-440.0,0.00020416,2]
[364624632,1749167436081,-440.0,0.00020416,2]
[364624633,1749167436091,-440.0,0.00020416,2]
[364624634,1749167436100,-450.28,0.00020416,2]
[364624635,1749167436109,-500.0,0.00020429,2]
[364624636,1749167436119,-500.0,0.00020473,2]
[364624637,1749167436221,-500.0,0.00020473,2]
[364624638,1749167436231,-476.9834559,0.00020476,2]
[364624639,1749167436240,-500.0,0.00020476,2]
[364624640,1749167436250,-443.13339299,0.00020478,2]
[364624641,1749167436260,-541.197115,0.00020478,2]
[364624642,1749167436269,-500.0,0.00020478,2]
[364624643,1749167436279,-500.0,0.00020488,2]
[364624644,1749167436288,-233.08958775,0.00020494,2]
[364624645,1749167436297,-500.0,0.00020514,2]
[364624646,1749167436307,-500.0,0.00020514,2]
[364624647,1749167436316,-500.0,0.00020541,2]
[364624648,1749167436326,-500.0,0.00020541,2]
[364624649,1749167436335,-500.0,0.00020547,2]
[364624650,1749167436344,-500.0,0.0002058,2]
[364624651,1749167436354,-440.0,0.00020688,2]
[364624652,1749167436363,-410.0,0.00020689,2]
[364624653,1749167436373,-575.15,0.00020689,2]
[364624654,1749167436382,-832.01,0.00020689,2]
[364624655,1749167436392,-478.71,0.00020689,2]
[364624656,1749167436401,-440.0,0.00020689,2]
[364624657,1749167436410,-440.0,0.00020689,2]
[364624658,1749167436420,-440.0,0.00020689,2]
[364624659,1749167436430,-440.0,0.00020689,2]
[364624660,1749167436440,-440.0,0.00020689,2]
[364624661,1749167436450,-440.0,0.00020689,2]
[364624662,1749167436459,-440.0,0.00020689,2]
[364624663,1749167436468,-1716.07,0.00020689,2]
[364624664,1749167436479,-440.0,0.00020689,2]
[364624665,1749167436493,-440.0,0.00020689,2]
[364624666,1749167436502,-440.0,0.00020689,2]
[364624667,1749167436512,-440.0,0.00020689,2]
[364624668,1749167436522,-440.0,0.00020689,2]
[364624669,1749167436531,-440.0,0.00020689,2]
[364624670,1749167436540,-440.0,0.00020689,2]
[364624671,1749167436550,-440.0,0.00020689,2]
[364624672,1749167436562,-440.0,0.00020689,2]
[364624673,1749167436571,-440.0,0.00020689,2]
[364624674,1749167436580,-410.0,0.0002069,2]
[364624675,1749167436589,-440.0,0.0002069,2]
[364624676,1749167436599,-440.0,0.0002069,2]
[364624677,1749167436607,-440.0,0.0002069,2]
[364624678,1749167436617,-161.0,0.0002069,2]
[364624679,1749167436626,-440.0,0.0002069,2]
[364624680,1749167436635,-440.0,0.0002069,2]
[364624681,1749167436645,-440.0,0.0002069,2]
[364624682,1749167436654,-440.0,0.0002069,2]
[364624683,1749167436663,-440.0,0.0002069,2]
[364624684,1749167436673,-440.0,0.0002069,2]
[364624685,1749167436682,-440.0,0.0002069,2]
[364624686,1749167436692,-440.0,0.0002069,2]
[364624687,1749167436701,-440.0,0.0002069,2]
[364624688,1749167436711,-440.0,0.0002069,2]
[364624689,1749167436721,-440.0,0.0002069,2]
[364624690,1749167436730,-440.0,0.0002069,2]
[364624691,1749167436739,-440.0,0.0002069,2]
[364624692,1749167436749,-440.0,0.0002069,2]
[364624693,1749167436758,-440.0,0.0002069,2]
[364624694,1749167436768,-420.0,0.00020788,2]
[364624695,1749167436777,-1280.10874939,0.000209,4]
[364624696,1749167436786,-530.66870168,0.00020905,2]
[364624697,1749167436796,-1064.54710437,0.00020905,2]
[364624698,1749167436806,-500.0,0.00020905,2]
[364624699,1749167436815,-1000.0,0.00020905,2]
[364624700,1749167436824,-842.5625,0.00020914,2]
[364624701,1749167436835,-160.0,0.00020914,2]
[364624702,1749167436844,-229.48950782,0.00020923,2]
[364624703,1749167436854,-160.0,0.00020923,2]
[364624704,1749167436863,-440.0,0.00020962,2]
[364624705,1749167436872,-575.15,0.00020963,2]
[364624706,1749167436883,-832.01,0.00020963,2]
[364624707,1749167436892,-478.71,0.00020963,2]
[364624708,1749167436901,-440.0,0.00020963,2]
[364624709,1749167436910,-440.0,0.00020963,2]
[364624710,1749167436922,-440.0,0.00020963,2]
[364624711,1749167436932,-252.52692179,0.00020963,2]
[364624712,1749167436941,-440.0,0.00020963,2]
[364624713,1749167436950,-440.0,0.00020963,2]
[364624714,1749167436960,-440.0,0.00020963,2]
[364624715,1749167436970,-1716.07,0.00020963,2]
[364624716,1749167436980,-440.0,0.00020963,2]
[364624717,1749167436989,-440.0,0.00020963,2]
[364624718,1749167436998,-326.76464329,0.00020963,2]
[364624719,1749167437008,-499.45,0.00020963,2]
[364624720,1749167437017,-440.0,0.00020963,2]
[364624721,1749167437026,-390.0,0.00020963,2]
[364624722,1749167437035,-320.93581245,0.00020963,2]
[364624723,1749167437045,-440.0,0.00020963,2]
[364624724,1749167437054,-440.0,0.00020963,2]
[364624725,1749167437063,-440.0,0.00020963,2]
[364624726,1749167437072,-440.0,0.00020964,2]
[364624727,1749167437082,-440.0,0.00020964,2]
[364624728,1749167437092,-440.0,0.00020964,2]
[364624729,1749167437101,-390.0,0.00020964,2]
[364624730,1749167437111,-440.0,0.00020964,2]
[364624731,1749167437120,-440.0,0.00020964,2]
[364624732,1749167437130,-440.0,0.00020964,2]
[364624733,1749167437139,-440.0,0.00020964,2]
[364624734,1749167437148,-440.0,0.00020964,2]
[364624735,1749167437158,-440.0,0.00020964,2]
[364624736,1749167437173,-440.0,0.00020964,2]
[364624737,1749167437182,-440.0,0.00020964,2]
[364624738,1749167437192,-440.0,0.00020964,2]
[364624739,1749167437201,-390.0,0.00020964,2]
[364624740,1749167437211,-353.2,0.00020964,2]
[364624741,1749167437220,-440.0,0.00020964,2]
[364624742,1749167437230,-440.0,0.00020964,2]
[364624743,1749167437239,-197.2,0.00020964,2]
[364624744,1749167437249,-500.0,0.00020977,2]
[364624745,1749167437258,-647.12170768,0.00021021,2]
[364624746,1749167437267,-191.18332964,0.00021036,2]
[364624747,1749167437277,-1280.10874924,0.00021038,4]
[364624748,1749167437286,-500.0,0.00021048,2]
[364624749,1749167437295,-741.32313444,0.00021062,2]
[364624750,1749167437305,-1000.0,0.00021062,2]
[364624751,1749167437314,-1000.0,0.00021089,2]
[364624752,1749167437323,-550.77853482,0.00021089,2]
[364624753,1749167437333,-1000.0,0.00021128,2]
[364624754,1749167437342,-1280.10874924,0.00021176,4]
[364624755,1749167437351,-440.0,0.00021236,2]
[364624756,1749167437360,-575.15,0.00021237,2]
[364624757,1749167437370,-832.01,0.00021237,2]
[364624758,1749167437380,-478.71,0.00021237,2]
[364624759,1749167437389,-440.0,0.00021237,2]
[364624760,1749167437399,-440.0,0.00021237,2]
[364624761,1749167437408,-390.0,0.00021237,2]
[364624762,1749167437422,-440.0,0.00021237,2]
[364624763,1749167437431,-440.0,0.00021237,2]
[364624764,1749167437441,-440.0,0.00021237,2]
[364624766,1749167437450,-1716.07,0.00021237,2]
[364624767,1749167437459,-440.0,0.00021237,2]
[364624769,1749167437469,-440.0,0.00021237,2]
[364624770,1749167437478,-390.0,0.00021237,2]
[364624771,1749167437490,-440.0,0.00021237,2]
[364624772,1749167437499,-440.0,0.00021237,2]
[364624773,1749167437509,-440.0,0.00021237,2]
[364624774,1749167437518,-390.0,0.00021238,2]
[364624775,1749167437530,-440.0,0.00021238,2]
[364624776,1749167437540,-440.0,0.00021238,2]
[364624778,1749167437550,-440.0,0.00021238,2]
[364624780,1749167437560,-440.0,0.00021238,2]
[364624782,1749167437570,-410.0,0.00021238,2]
[364624784,1749167437579,-440.0,0.00021238,2]
[364624786,1749167437588,-440.0,0.00021238,2]
[364624788,1749167437598,-197.98495317,0.00021238,2]
[364624790,1749167437607,-440.0,0.00021238,2]
[364624792,1749167437616,-412.88,0.00021238,2]
[364624794,1749167437626,-283.25588157,0.00021238,2]
[364624796,1749167437635,-390.0,0.00021238,2]
[364624798,1749167437645,-390.0,0.00021238,2]
[364624800,1749167437654,-1395.3,0.000213,2]
[364624801,1749167437664,-1280.10874924,0.00021314,5]
[364624804,1749167437674,-1280.10874924,0.00021452,5]
[364624806,1749167437684,-1500.0,0.00021453,2]
[364624808,1749167437693,-440.0,0.0002151,2]
[364624810,1749167437702,-575.15,0.00021511,2]
[364624812,1749167437711,-832.01,0.00021511,2]
[364624813,1749167437721,-478.71,0.00021511,2]
[364624816,1749167437730,-440.0,0.00021511,2]
[364624817,1749167437739,-440.0,0.00021511,2]
[364624819,1749167437748,-440.0,0.00021511,2]
[364624821,1749167437757,-440.0,0.00021511,2]
[364624823,1749167437766,-440.0,0.00021511,2]
[364624825,1749167437775,-1716.07,0.00021511,2]
[364624827,1749167437786,-440.0,0.00021511,2]
[364624829,1749167437795,-440.0,0.00021511,2]
[364624831,1749167437805,-249.78,0.00021511,2]
[364624833,1749167437815,-440.0,0.00021511,2]
[364624835,1749167437825,-440.0,0.00021511,2]
[364624837,1749167437834,-440.0,0.00021512,2]
[364624840,1749167437844,-390.0,0.00021512,2]
[364624841,1749167437854,-390.0,0.00021512,2]
[364624844,1749167437863,-440.0,0.00021512,2]
[364624845,1749167437872,-440.0,0.00021512,2]
[364624847,1749167437882,-440.0,0.00021512,2]
[364624849,1749167437891,-440.0,0.00021512,2]
[364624852,1749167437900,-1280.10874924,0.0002159,5]
[364624853,1749167437909,-1000.0,0.00021596,2]
[364624855,1749167437922,-1000.0,0.0002161,2]
[364624857,1749167437932,-507.66408941,0.00021637,2]
[364624859,1749167437942,-191.18332964,0.0002167,2]
[364624861,1749167437952,-1280.10874924,0.00021728,5]
[364624863,1749167437962,-480.0,0.00021739,2]
[364624865,1749167437971,-440.0,0.00021784,2]
[364624868,1749167437984,-160.0,0.00021785,2]
[364624870,1749167437993,-575.15,0.00021785,2]
[364624872,1749167438003,-832.01,0.00021785,2]
[364624874,1749167438013,-478.71,0.00021785,2]
[364624876,1749167438021,-440.0,0.00021785,2]
[364624878,1749167438030,-440.0,0.00021785,2]
[364624880,1749167438040,-440.0,0.00021785,2]
[364624882,1749167438048,-534.6,0.00021785,2]
[364624884,1749167438058,-440.0,0.00021785,2]
[364624886,1749167438067,-1716.07,0.00021785,2]
[364624888,1749167438076,-440.0,0.00021785,2]
[364624890,1749167438085,-440.0,0.00021785,2]
[364624892,1749167438094,-440.0,0.00021785,2]
[364624894,1749167438104,-440.0,0.00021785,2]
[364624896,1749167438114,-440.0,0.00021786,2]
[364624898,1749167438123,-440.0,0.00021786,2]
[364624900,1749167438132,-170.72,0.00021786,2]
[364624902,1749167438141,-440.0,0.00021786,2]
[364624904,1749167438150,-440.0,0.00021786,2]
[364624906,1749167438159,-674.6,0.000218,2]
[364624908,1749167438171,-1280.10874924,0.00021866,6]
[364624910,1749167438180,-500.0,0.00022001,2]
[364624912,1749167438189,-1280.10874924,0.00022003,6]
[364624914,1749167438198,-440.0,0.00022058,2]
[364624916,1749167438208,-575.15,0.00022059,2]
[364624918,1749167438217,-832.01,0.00022059,2]
[364624920,1749167438226,-478.71,0.00022059,2]
[364624922,1749167438235,-440.0,0.00022059,2]
[364624924,1749167438244,-440.0,0.00022059,2]
[364624925,1749167438254,-440.0,0.00022059,2]
[364624927,1749167438263,-440.0,0.00022059,2]
[364624929,1749167438272,-1716.07,0.00022059,2]
[364624931,1749167438281,-440.0,0.00022059,2]
[364624933,1749167438291,-440.0,0.00022059,2]
[364624935,1749167438299,-440.0,0.00022059,2]
[364624937,1749167438308,-507.58,0.00022059,2]
[364624939,1749167438318,-440.0,0.0002206,2]
[364624941,1749167438327,-390.0,0.0002206,2]
[364624944,1749167438338,-440.0,0.0002206,2]
[364624946,1749167438348,-440.0,0.0002206,2]
[364624948,1749167438357,-1280.10874924,0.00022141,6]
[364624949,1749167438367,-644.28,0.00022199,2]
[364624951,1749167438376,-440.0,0.00022199,2]
[364624953,1749167438385,-545.34,0.00022199,2]
[364624956,1749167438396,-430.0,0.00022199,2]
[364624958,1749167438405,-8850.22398617,0.000222,69]
[364624960,1749167438416,-8850.22398616,0.000222,69]
[364624962,1749167438425,-8850.22398616,0.000222,69]
[364624964,1749167438434,-1280.10874924,0.00022279,6]
[364624966,1749167438443,-191.18332964,0.00022304,2]
[364624968,1749167438452,-440.0,0.00022332,2]
[364624970,1749167438461,-575.15,0.00022333,2]
[364624972,1749167438471,-832.01,0.00022333,2]
[364624973,1749167438481,-478.71,0.00022333,2]
[364624975,1749167438492,-440.0,0.00022333,2]
[364624977,1749167438501,-440.0,0.00022333,2]
[364624979,1749167438511,-440.0,0.00022333,2]
[364624981,1749167438520,-440.0,0.00022333,2]
[364624983,1749167438532,-1716.07,0.00022333,2]
[364624985,1749167438541,-440.0,0.00022333,2]
[364624987,1749167438550,-440.0,0.00022333,2]
[364624989,1749167438561,-440.0,0.00022333,2]
[364624991,1749167438571,-440.0,0.00022334,2]
[364624993,1749167438580,-440.0,0.00022334,2]
[364624995,1749167438589,-440.0,0.00022334,2]
[364624997,1749167438598,-1280.10874924,0.00022417,7]
[364624999,1749167438608,-644.28,0.00022473,2]
[364625001,1749167438617,-440.0,0.00022473,2]
[364625003,1749167438627,-994.0558175,0.00022475,2]
[364625005,1749167438636,-207.4,0.00022475,2]
[364625007,1749167438647,-1280.10874924,0.00022555,7]
[364625009,1749167438657,-1395.3,0.000226,7]
[364625011,1749167438668,-440.0,0.00022606,2]
[364625013,1749167438677,-575.15,0.00022607,2]
[364625015,1749167438686,-832.01,0.00022607,2]
[364625017,1749167438696,-478.71,0.00022607,2]
[364625019,1749167438705,-440.0,0.00022607,2]
[364625021,1749167438714,-440.0,0.00022607,2]
[364625033,1749167438812,-440.0,0.00022607,2]
[364625035,1749167438822,-440.0,0.00022607,2]
[364625036,1749167438831,-1716.07,0.00022607,2]
[364625038,1749167438840,-440.0,0.00022607,2]
[364625040,1749167438850,-440.0,0.00022607,2]
[364625042,1749167438859,-440.0,0.00022607,2]
[364625044,1749167438869,-440.0,0.00022608,2]
[364625046,1749167438878,-440.0,0.00022608,2]
[364625048,1749167438888,-440.0,0.00022608,2]
[364625051,1749167438897,-193.0,0.00022657,2]
[364625053,1749167438907,-500.0,0.0002268,2]
[364625055,1749167438918,-1280.10874924,0.00022693,7]
[364625057,1749167438929,-644.28,0.00022747,2]
[364625059,1749167438939,-440.0,0.00022747,2]
[364625061,1749167438948,-1280.10874924,0.00022831,8]
[364625063,1749167438957,-440.0,0.0002288,2]
[364625065,1749167438967,-575.15,0.00022881,2]
[364625067,1749167438977,-832.01,0.00022881,2]
[364625069,1749167438987,-478.71,0.00022881,2]
[364625071,1749167438996,-502.6,0.00022881,2]
[364625072,1749167439005,-440.0,0.00022881,2]
[364625074,1749167439014,-440.0,0.00022881,2]
[364625076,1749167439024,-440.0,0.00022881,2]
[364625078,1749167439033,-1716.07,0.00022881,2]
[364625080,1749167439042,-440.0,0.00022881,2]
[364625082,1749167439052,-440.0,0.00022881,2]
[364625084,1749167439061,-440.0,0.00022881,2]
[364625086,1749167439071,-440.0,0.00022882,2]
[364625088,1749167439080,-351.12705099,0.00022882,2]
[364625090,1749167439090,-440.0,0.00022882,2]
[364625092,1749167439099,-191.18332964,0.00022938,2]
[364625094,1749167439108,-1280.10874924,0.00022969,8]
[364625096,1749167439118,-12781.93875942,0.0002299,2]
[364625098,1749167439127,-151.0,0.00023,7]
[364625100,1749167439136,-644.28,0.00023021,2]
[364625102,1749167439146,-440.0,0.00023021,2]
[364625104,1749167439155,-8850.22398616,0.00023049,72]
[364625106,1749167439165,-674.6,0.000231,7]
[364625108,1749167439174,-1280.10874924,0.00023107,8]
[364625110,1749167439184,-440.0,0.00023154,2]
[364625112,1749167439193,-160.0,0.00023155,2]
[364625114,1749167439202,-575.15,0.00023155,2]
[364625116,1749167439213,-832.01,0.00023155,2]
[364625118,1749167439223,-478.71,0.00023155,2]
[364625120,1749167439232,-440.0,0.00023155,2]
[364625122,1749167439242,-440.0,0.00023155,2]
[364625124,1749167439251,-440.0,0.00023155,2]
[364625126,1749167439261,-1716.07,0.00023155,2]
[364625128,1749167439270,-440.0,0.00023155,2]
[364625130,1749167439279,-537.44,0.00023155,2]
[364625132,1749167439288,-440.0,0.00023155,2]
[364625134,1749167439297,-440.0,0.00023156,2]
[364625136,1749167439306,-1280.10874924,0.00023245,8]
[364625138,1749167439316,-644.28,0.00023295,2]
[364625140,1749167439325,-440.0,0.00023295,2]
[364625142,1749167439334,-151.0,0.000233,5]
[364625144,1749167439344,-1280.10874924,0.00023383,9]
[364625146,1749167439353,-575.15,0.00023429,2]
[364625148,1749167439363,-832.01,0.00023429,2]
[364625150,1749167439372,-478.71,0.00023429,2]
[364625152,1749167439381,-440.0,0.00023429,2]
[364625154,1749167439391,-440.0,0.00023429,2]
[364625156,1749167439400,-440.0,0.00023429,2]
[364625158,1749167439410,-1716.07,0.00023429,2]
[364625160,1749167439421,-440.0,0.00023429,2]
[364625162,1749167439431,-440.0,0.00023429,2]
[364625164,1749167439440,-572.6068135,0.00023479,2]
[364625166,1749167439450,-151.0,0.000235,10]
[364625168,1749167439459,-1280.10874924,0.00023521,9]
[364625170,1749167439468,-644.28,0.00023569,2]
[364625172,1749167439478,-440.0,0.00023569,2]
[364625174,1749167439497,-191.18332964,0.00023572,2]
[364625176,1749167439508,-1280.10874924,0.00023659,9]
[364625178,1749167439517,-575.15,0.00023703,2]
[364625180,1749167439527,-832.01,0.00023703,2]
[364625182,1749167439536,-478.71,0.00023703,2]
[364625184,1749167439545,-174.77,0.00023703,2]
[364625186,1749167439555,-440.0,0.00023703,2]
[364625188,1749167439564,-440.0,0.00023703,2]
[364625191,1749167439573,-1716.07,0.00023703,2]
[364625193,1749167439583,-440.0,0.00023703,2]
[364625194,1749167439591,-440.0,0.00023703,2]
[364625196,1749167439600,-1280.10874924,0.00023797,9]
[364625198,1749167439610,-151.0,0.000238,9]
[364625200,1749167439619,-1395.3,0.000238,7]
[364625202,1749167439629,-624.320774,0.00023814,3]
[364625204,1749167439638,-644.28,0.00023843,2]
[364625206,1749167439647,-440.0,0.00023843,2]
[364625208,1749167439657,-215.0738,0.00023844,2]
[364625210,1749167439668,-1016.14714008,0.00023878,2]
[364625213,1749167439677,-1280.10874924,0.00023934,10]
[364625214,1749167439687,-1016.14714004,0.0002396,2]
[364625217,1749167439696,-575.15,0.00023977,2]
[364625220,1749167439705,-832.01,0.00023977,2]
[364625222,1749167439714,-478.71,0.00023977,2]
[364625224,1749167439723,-440.0,0.00023977,2]
[364625226,1749167439732,-440.0,0.00023977,2]
[364625228,1749167439741,-1716.07,0.00023977,2]
[364625230,1749167439750,-440.0,0.00023977,2]
[364625232,1749167439759,-440.0,0.00023977,2]
[364625234,1749167439768,-60615.82138161,0.00024,14]
[364625236,1749167439777,-501.17,0.00024031,2]
[364625238,1749167439786,-1016.14714004,0.00024042,2]
[364625240,1749167439795,-1280.10874924,0.00024072,10]
[364625242,1749167439805,-159.035202,0.00024088,9]
[364625244,1749167439814,-151.0,0.000241,9]
[364625246,1749167439823,-159.035202,0.00024103,6]
[364625248,1749167439832,-644.28,0.00024117,2]
[364625250,1749167439842,-440.0,0.00024117,2]
[364625252,1749167439851,-1016.14714004,0.00024124,2]
[364625254,1749167439861,-5593.49731012,0.0002418,15]
[364625256,1749167439870,-6688.99,0.0002418,7]
[364625258,1749167439879,-5732.35275069,0.0002418,5]
[364625284,1749167440118,-258.10698352,0.00023428,2]
[364625287,1749167440130,-181.89301648,0.00023428,2]
[364625289,1749167440139,-155.13578557,0.00023702,2]
[364625291,1749167440151,-284.86421443,0.00023702,2]
[364625293,1749167440160,-440.0,0.00023976,2]
[364625295,1749167440172,-167.53724931,0.0002418,5]
[364625297,1749167440182,-229.48950782,0.000242,7]
[364625299,1749167440191,-1016.14714004,0.00024206,2]
[364625301,1749167440201,-8850.22398616,0.00024206,78]
[364625303,1749167440210,-191.18332964,0.00024206,2]
[364625305,1749167440219,-1280.10874924,0.0002421,10]
[364625307,1749167440228,-501.17,0.00024231,4]
[364625309,1749167440238,-440.0,0.0002425,2]
[364625311,1749167440247,-575.15,0.00024251,2]
[364625313,1749167440257,-832.01,0.00024251,2]
[364625315,1749167440266,-440.0,0.00024251,2]
[364625317,1749167440275,-440.0,0.00024251,2]
[364625319,1749167440283,-1716.07,0.00024251,2]
[364625321,1749167440292,-262.75,0.00024251,2]
[364625323,1749167440302,-440.0,0.00024251,2]
[364625325,1749167440311,-500.0,0.00024273,2]
[364625327,1749167440321,-500.0,0.00024273,2]
[364625329,1749167440330,-500.0,0.00024273,2]
[364625331,1749167440339,-500.0,0.00024273,2]
[364625333,1749167440348,-600.0,0.00024273,2]
[364625335,1749167440357,-2000.0,0.00024273,2]
[364625337,1749167440367,-2000.0,0.00024273,2]
[364625339,1749167440376,-2000.0,0.00024273,2]
[364625341,1749167440385,-2000.0,0.00024273,2]
[364625343,1749167440394,-2000.0,0.00024273,2]